{"text_format":"1","workbook":"xlsx","n_sheets":2,"sheets":["2018","Лист1"],"not_rendered":{"charts":0,"images":0,"macros":1,"external_links":0,"defined_names":3,"comments":0,"pivot_tables":0},"unopened":[],"bounds":{"document_bytes":16777216,"sheet_cells":100000,"rows_first":2000,"rows_last":500,"rows_between":2000,"halvings":0,"cell_chars":16384,"cell_head_chars":4096},"cells_cut":0,"cells_raw":0,"read":"whole","date_system":"1900"}

{"sheet":"2018","index":0,"n_rows":137,"n_cols":92,"rows_kept":137,"cut":false,"hidden":false,"merged":[[0,0,1,5],[127,0,127,5],[2,0,2,5],[3,0,3,5],[4,0,4,5],[125,0,125,4]]}
["Приложение № 5\n                                                                                                    к решению Совета депутатов \nУсть-Чульского сельсовета от  25 ноября 2021 г. №  35\n                                                                     «О проекте бюджета муниципального образования \nУсть-Чульский сельсовет на 2022 год» \n\n"]
[]
[]
["РАСПРЕДЕЛЕНИЕ\nрасходов местного бюджета по разделам, подразделам, целевым статьям,\nгруппам и подгруппам видов расходов классификации расходов\nадминистрации Усть-Чульского сельсовета Аскизского района республики Хакасия\n"]
["(тыс. рублей)",null,null,null,null,null,null,null,null,null,null,null,null,null,null,null,null,null,null,null,null,null,null,null,null,null,null,null,null,null,null,null,null,null,null,null,null,null,null,null,null,null,null,null,null,null,null,"Табл поправок"]
["Наименование показателя","РЗ","ПР","ЦСР","ВР","Сумма",null,null,null,null,null,null,null,null,null,null,null,null,null,null,null,null,null,"июль",null,null,null,null,null,null,null,null,null,null,null,null,null,"таблица поправок",null,null,null,null,null,null,null,null,null,null,null,null,null,null,null,null,null,null,null,null,null,null,null,null,null,null,null,null,null,null,null,null,null,null,null,null,null,null,null,null,null,null,null,null,null,null,null,null,"2001-12-01"]
["    ОБЩЕГОСУДАРСТВЕННЫЕ ВОПРОСЫ","01","00","00 0 00 00000","000",{"$f":"F8+F14+F22+F27","v":3672}]
["        Функционирование высшего должностного лица субъекта Российской Федерации и муниципального образования","01","02","00 0 00 00000","000",{"$f":"F9","v":547}]
["Непрограммные расходы в сфере установленных функций органов местного самоуправления (органов местного самоуправления, муниципальных учреждений) муниципального образования Аскизский район","01","02","40 0 00 00000","000",{"$f":"F10","v":547}]
["Глава муниципального образования","01","02","40 0 00 10000 ","000",{"$f":"F11","v":547}]
["Расходы на выплату персоналу государственных (муниципальных) органов","01","02","40 0 00 10000","120",{"$f":"F12+F13","v":547},null,null,null,null,null,null,null,null,null,null,null,null,null,null,null,null,null,null,null,null,null,null,null,null,null,null,null,null,null,null,null,null,null,null,50,null,null,null,null,null,null,null,null,45,60,80,121.6,null,null,null,null,null,null,null,null,null,null,null,null,null,null,null,null,null,null,null,null,null,null,null,null,null,null,null,null,null,null,null,null,null,50,118]
["Фонд оплаты труда государственных (муниципальных) органов","01","02","40 0 00 14000","121",420]
["Взносы по обязательному социальному страхованию на выплаты денежного содержания и иные выплаты работникам государственных (муниципальных) органов","01","02","40 0 00 14000","129",127]
["        Функционирование Правительства Российской Федерации, высших исполнительных органов государственной власти субъектов Российской Федерации, местных администраций","01","04","00 0 00 00000","000",{"$f":"F15","v":3113}]
["Непрограммные расходы в сфере установленных функций органов  местного самоуправления (органов местного самоуправления, муниципальных учреждений) муниципального образования Усть-Чульский сельсовет","01","04","40 0 00 00000","000",{"$f":"F16","v":3113}]
["Обеспечение деятельности администрации района, муниципальных учреждений","01","04","40 4 00 00000","000",{"$f":"F17","v":3113}]
["Центральный аппарат","01","04","40 4 00 10000","000",{"$f":"F18+F21","v":3113}]
["Расходы на выплату персоналу государственных (муниципальных) органов","01","04","40 4 00 10000","120",{"$f":"F19+F20","v":1337},null,null,null,null,null,null,null,null,null,null,null,null,null,null,null,null,null,700,null,null,null,null,null,null,null,null,null,null,null,null,null,null,null,null,-25.2,1143.7,null,null,null,null,null,null,null,570,716,1170,1553.8,null,null,null,null,null,null,null,null,null,null,null,null,null,null,null,null,null,null,null,null,null,null,null,null,null,null,null,null,null,null,null,null,null,420,1762,-90]
["Фонд оплаты труда государственных (муниципальных) органов","01","04","40 4 00 10000","121",1050]
["Взносы по обязательному социальному страхованию на выплаты денежного содержания и иные выплаты работникам государственных (муниципальных) органов","01","04","40 4 00 10000","129",287]
["Иные закупки товаров, работ, услуг для обеспечения государственных (муниципальных нужд)","01","04","40 4 00 10000","240",1776,null,null,null,20,35,100,null,null,null,null,null,null,null,null,null,null,null,87,25,121,null,null,null,null,null,null,null,null,null,null,null,100,null,null,-121,842,null,null,null,null,null,null,null,477.1,null,null,null,null,null,null,null,null,null,null,null,null,null,null,null,null,null,null,null,null,null,null,null,null,null,null,null,null,null,null,null,null,null,null,null,null,100,-67]
["        Резервные фонды","01","11","00 0 00 00000","000",10]
["Непрограммные расходы в сфере установленных функций органов  местного самоуправления (органов местного самоуправления, муниципальных учреждений) муниципального образования Усть-Чульский сельсовет","01","11","40 0 00 00000","000",10]
["Обеспечение деятельности администрации района, муниципальных учреждений","01","11","40 4 00 00000","000",10]
[" Резервные фонды","01","11","40 4 00 07050","800",10]
["Резервные средства","01","11","40 4 00 07050","870",10,-400,null,null,-573.5,-573,-350,-82.3,-3300,-240,2702.2,null,null,null,null,null,null,null,-215,-522,-400,-1000,-773,-243.1,-2230,-87,-245,1888.5,215,-380,null,null,null,null,null,-461,-50,-700,-328.8,-71.099999999999994,205.7,null,null,null,-500,-260,-230.7,800,null,null,null,null,null,null,null,null,null,null,null,null,null,null,null,null,null,null,null,null,null,null,null,null,null,null,null,null,null,null,null,null,null,-500,-185,-56,-100,-100,-554.9]
["Муниципальная программа проведение кадастровых работ в отношении земельных участов из состава земель сельскохозяйственного назначения находящихся или относящихся к собственности муниципального образования Усть-Чульский сельсовет Аскизского района Усть-Чульский сельсовет Аскизского района Республики Хакасия ,государственная собственность на которые неразграничена ,образованных в счет невостребованных земельных долей на 202-2023 годы\"","01","11"," 40 4 00 00000","000",2]
["Мероприятия по проведению кадастровых работ  в отношении земельных участков из состава земель сельскохозяйственного назначения находящихся или относящихся  к собственности муниципального образования Усть-Чульский сельсовет ","01","11","40 4 00 00000","000",2]
["Закупка товаров, работ и услуг для орбеспечения государственных (муниципальных) нужд","01","11","40 4 00 00000","200",2]
["Иные закупки товаров, работ, услуг для обеспечения государственных (муниципальных нужд)","01","11","40 4 00 00000","240",2]
["НАЦИОНАЛЬНАЯ ОБОРОНА","02","03","00 0 00 00000","000",{"$f":"F32","v":383.3}]
["Непрограммные расходы в сфере установленных функций органов  местного самоуправления (органов местного самоуправления, муниципальных учреждений) муниципального образования Усть-Чульский сельсовет","02","03","40 0 00 00000","000",383.3]
["Обеспечение деятельности администрации района, муниципальных учреждений","02","03","40 4 00 00000","000",383.3]
["Осуществление первичного воинского учета  на территориях, где отсутствуют военные комиссариаты","02","03","40 4 00 51180","000",383.3]
["Расходы на выплату персоналу в целях обеспечения выполнения функций государственными (муниципальными) органами, казенными учреждениями, органами управления государственными внебюджетными фондами","02","03","40 4 00 511810","100",383.3]
["Расходы на выплату персоналу казенных учреждений","02","03","40 4 00 511810","110",383.3]
["Фонд оплаты труда учреждений","02","03","40 4 00 511810","111",294.39999999999998]
["Взносы по обязательному социальному страхованию на выплаты денежного содержания и иные выплаты работникам государственных (муниципальных) органов","02","03","40 4 00 511810","119",118.5]
["НАЦИОНАЛЬНАЯ БЕЗОПАСНОСТЬ И ПРАВООХРАНИТЕЛЬНАЯ ДЕЯТЕЛЬНОСТЬ","03","00","00 0 00 00000","000",{"$f":"F40+F48+F44","v":189}]
["      Обеспечение пожарной безопасности","03","10","00 0 00 00000","000",91]
["Муниципальная программа \"Противопожарная безопасность Усть-Чульского сельсовета на 2019-2021 годы\"","03","10","06 0 00 00000","000",{"$f":"F42","v":91}]
["Закупка товаров, работ и услуг для орбеспечения государственных (муниципальных) нужд","03","10","06 0 00 21090","200",{"$f":"F43","v":91}]
["Иные закупки товаров, работ, услуг для обеспечения государственных (муниципальных нужд)","03","10","06 0 00 21090","240",91,null,null,null,null,null,null,null,null,null,null,null,null,null,null,null,null,null,null,null,null,null,null,null,null,null,null,null,null,null,null,null,null,null,null,231.65]
["Муниципальная программа «Комплексное развитие систем коммунальной инфраструктуры муниципального образования Усть-Чульский сельсовет 2020-2023 годы\t","03","10","17 0 01 21100","000",85]
["Мероприятия по развитию систем коммунальной инфраструктуры","03","10","17 0 01 21100","000",85]
["Закупка товаров, работ и услуг для орбеспечения государственных (муниципальных) нужд","03","10","17 0 01 21100","200",85]
["Иные закупки товаров, работ, услуг для обеспечения государственных (муниципальных нужд)","03","10","17 0 01 21100","240",85]
["      Другие вопросы в области национальной безопасности и правоохранительной деятельности","03","14","00 0 00 00000","000",{"$f":"F49+F53","v":13}]
["Муниципальная программа \"Противодействие терроризму и экстремизму на территории Усть-Чульского сельсовета на 2019-2022 годы\"","03","14","01 0 00 00000","000",5]
["Мероприятия в сфере противодействия терроризму и экстремизму","03","14","01 0 00 21100","000",5]
["Закупка товаров, работ и услуг для орбеспечения государственных (муниципальных) нужд","03","14","01 0 00 21100","200",5]
["Иные закупки товаров, работ, услуг для обеспечения государственных (муниципальных нужд)","03","14","01 0 00 21100","240",5]
["Муниципальная программа \"Профилактика правонарушений на территории Усть-Чульского сельсовета на 2021-2023 годы\"","03","14","05 0 00 21080","000",{"$f":"F54","v":8}]
["Мероприятия в сфере профилактике правонарушений","03","14","05 0 00 21080","000",{"$f":"F55","v":8}]
["Закупка товаров, работ и услуг для орбеспечения государственных (муниципальных) нужд","03","14","05 0 00 21080","200",{"$f":"F56","v":8}]
["Иные закупки товаров, работ, услуг для обеспечения государственных (муниципальных нужд)","03","14","05 0 00 21080","240",8,null,null,null,null,null,null,null,null,null,null,null,null,null,null,null,null,null,null,null,null,null,null,null,null,null,null,null,null,null,null,null,null,null,null,null,null,null,null,null,null,null,null,null,null,null,null,null,null,null,null,null,null,null,null,null,null,null,null,null,null,null,null,null,null,null,null,null,null,null,null,null,null,null,null,null,null,null,null,null,null,10]
["НАЦИОНАЛЬНАЯ ЭКОНОМИКА","04","00","00 0 00 00000","000",{"$f":"F58+F68","v":3438.2}]
["      Дорожное хозяйство (дорожные фонды)","04","09","00 0 00 00000","000",{"$f":"F59","v":1185.5}]
["      Содержание и ремонт атомобильных дорог","04","09","40 4 00 00200","000",{"$f":"F60","v":1185.5}]
["Закупка товаров, работ и услуг для орбеспечения государственных (муниципальных) нужд","04","09","40 4 00 00200","200",{"$f":"F61","v":1185.5}]
["Иные закупки товаров, работ, услуг для обеспечения государственных (муниципальных нужд)","04","09","40 4 00 00200","240",{"$f":"F62+F65","v":1185.5}]
["Муниципальная программа «Комплексное развитие систем транспортной  инфраструктуры муниципального образования Усть-Чульский сельсовет Аскизского района Республики Хакасия на 2021-2023 годы","04","09","40 4 00 21100","000",450]
["Закупка товаров, работ и услуг для орбеспечения государственных (муниципальных) нужд","04","09","40 4 00 21100","200",450]
["Иные закупки товаров, работ, услуг для обеспечения государственных (муниципальных нужд)","04","09","40 4 00 21100","240",450]
["Муниципальная программа  «Совершенствование и развитие автомобильных дорог на территории Усть-Чульского сельсовета  Аскизского района республики Хакасия","04","09","08 0 00 21020","000",735.5]
["Закупка товаров, работ и услуг для орбеспечения государственных (муниципальных) нужд","04","09","08 0 00 21020","200",735.5]
["Иные закупки товаров, работ, услуг для обеспечения государственных (муниципальных нужд)","04","09","08 0 00 21020","240",735.5]
["Обеспечение деятельности подведомственных учреждений (Учебно-методические кабинеты, централизованные бухгалтерии, группы хозяйственного обслуживания)","04","12","40 4 00 17090","000",{"$f":"F69+F73","v":2252.6999999999998}]
["     Расходы на выплату персоналу в целях обеспечения выполнения функций государственными (муниципальными) органами, казенными учреждениями, органами управления государственными фнебюджетными фондами","04","12","40 4 00 17090","100",{"$f":"F70","v":2052.6999999999998}]
["Расходы на выплату персоналу казенных учреждений","04","12","40 4 00 17090","110",{"$f":"F71+F72","v":2052.6999999999998}]
["Фонд оплаты труда учреждений","04","12","40 4 00 17090","111",1579]
["Взносы по обязательному социальному страхованию на выплаты денежного содержания и иные выплаты работникам государственных (муниципальных) органов","04","12","40 4 00 17090","119",473.7]
["    Закупка товаров, работ и услуг для орбеспечения государственных (муниципальных) нужд","04","12","40 4 00 17090","200",200]
[" Иные закупки товаров, работ, услуг для обеспечения государственных (муниципальных нужд)","04","12","40 4 00 17090","240",200,null,null,null,null,null,null,null,null,null,null,null,null,null,null,null,null,null,150]
["  ЖИЛИЩНО-КОММУНАЛЬНОЕ ХОЗЯЙСТВО","05","00","00 0 00 00000 ","000",{"$f":"F76+F80","v":20}]
["Муниципальная программа «Энергосбережение и повышение энергетической эффективности  в муниципальном образовании Усть-Чульский сельсовет на 2021-2024 годы","05","02","00 0 00 00000","000",{"$f":"F77","v":10}]
["Мероприятия в сфере энергосбережения  и повышение энергетической эффективности","05","02","04 0 00 21110","000",10]
[" Закупка товаров, работ и услуг для обеспечения государственных (муниципальных) нужд","05","02","04 0 00 21110","200",10,null,null,null,1714.3,null,null,null,null,null,null,null,null,null,null,null,null,null,null,null,null,null,null,null,null,null,null,null,null,null,null,null,null,null,null,1238.3900000000001,-1239.03]
["Иные закупки товаров, работ, услуг для обеспечения государственных (муниципальных нужд)","05","02","04 0 00 21110","240",10]
["Муниципальная программа   «Благоустройство террриторий  Усть-Чульского сельсовета  на 2020-2023 годы","05","03","10 0 01 21100","000",10]
["Мероприятия в сфере благоустройства","05","03","10 0 01 21100","000",10]
["Закупка товаров, работ и услуг для орбеспечения государственных (муниципальных) нужд","05","03","10 0 01 21100","200",10]
["иные закупки товаров, работ, услуг для обеспечения государственных (муниципальных нужд)","05","03","10 0 01 21100","240",10]
[" ОХРАНА ОКРУЖАЮЩЕЙ СРЕДЫ","06","00","00 0 00 00000 ","000",{"$f":"F85","v":14}]
["   Другие вопросы в области охраны окружающей среды","06","05","00 0 00 00000","000",{"$f":"F86+F90","v":14}]
["Муниципальная программа «Экологическая безопасность Усть-Чульского сельсовета на 2020 - 2022 годы»","06","05","10 0 01 21100","000",13]
["Мероприятия в сфере охраны окружающей среды","06","05","10 0 01 21100","000",13]
[" Закупка товаров, работ и услуг для орбеспечения государственных (муниципальных) нужд","06","05","10 0 01 21100","200",13]
["Иные закупки товаров, работ, услуг для обеспечения государственных (муниципальных нужд)","06","05","10 0 01 21100","240",13,300,null,null,null,null,null,null,null,null,null,null,null,null,null,null,null,null,null,null,null,null,null,null,null,null,null,null,null,null,null,null,null,null,null,-300]
["Муниципальная программа  «Использование и охрана земель на территории  Муниципального образования  Усть-Чульский сельсовет на 2021-2024 годы»","06","05","10 0 01 21100","000",1]
["закупка товаров, работ и услуг для орбеспечения государственных (муниципальных) нужд","06","05","10 0 01 21100","200",1]
["иные закупки товаров, работ, услуг для обеспечения государственных (муниципальных нужд)","06","05","10 0 01 21100","240",1]
["КУЛЬТУРА, КИНЕМАТОГРАФИЯ","08","00","00 0 00 00000","000",{"$f":"F94+F103","v":4555.1000000000004}]
["Культура","08","01","00 0 00 00000","000",{"$f":"F97+F101","v":3602.6000000000004}]
["Непрограммные расходы в сфере установленных функций органов  местного самоуправления (органов местного самоуправления, муниципальных учреждений) муниципального образования Усть-Чульский сельсовет","08","01","40 0 00 00000","000",{"$f":"F96","v":3602.6000000000004}]
["Обеспечение деятельности  администрации муниципального образования, муниципальных учреждений","08","01","40 4 00 16090","000",{"$f":"F97+F101","v":3602.6000000000004}]
["Расходы на выплату персоналу в целях обеспечения выполнения функций государственными (муниципальными) органами, казенными учреждениями, органами управления государственными внебюджетными фондами","08","01","40 4 00 16090","100",{"$f":"F98","v":1931.4}]
["Расходы на выплату персоналу казенных учреждений","08","01","40 4 00 16090","110",{"$f":"F99+F100","v":1931.4}]
["Фонд оплаты труда учреждений","08","01","40 4 00 16090","111",1483.4,null,null,null,null,null,null,null,null,null,null,null,null,null,null,null,null,null,550,null,null,null,null,null,null,null,null,null,null,null,null,null,null,null,null,1070,568,null,null,null,null,null,null,null,-600,null,null,null,null,null,null,null,null,null,null,null,null,null,null,null,null,null,null,null,null,null,null,null,null,null,null,null,null,null,null,null,null,null,null,null,null,500,850]
["Взносы по обязательному социальному страхованию на выплаты по оплате труда работников и иные выплаты работникам учреждений","08","01","40 4 00 16090","119",448]
["Закупка товаров, работ и услуг для орбеспечения государственных (муниципальных) нужд","08","01","40 4 00 16090","200",1671.2,null,null,null,null,null,null,null,null,null,null,null,null,null,null,null,null,null,null,null,null,null,null,null,null,null,null,null,null,null,null,null,null,null,null,null,null,null,null,null,null,null,null,null,7101.8,1845.1]
["Иные закупки товаров, работ, услуг для обеспечения государственных (муниципальных нужд)","08","01","40 4 00 16090","240",1671.2]
["Другие вопросы в области культуры, кинематографии","08","04","00 0 00 00000","000",{"$f":"F104","v":952.5}]
["Непрограммные расходы в сфере установленных функций органов  местного самоуправления (органов местного самоуправления, муниципальных учреждений) муниципального образования Усть-Чульский сельсовет","08","04","40 0 00 00000","000",{"$f":"F105","v":952.5}]
["Обеспечение деятельности  администрации муниципального образования, муниципальных учреждений","08","04","40 4 00 00000","000",{"$f":"F106","v":952.5}]
["Обеспечение деятельности подведомственных учреждений (Учебно-методические кабинеты, централизованные бухгалтерии, группы хозяйственного обслуживания)","08","04","40 4 00 17090","000",{"$f":"F107","v":952.5}]
["Расходы на выплату персоналу в целях обеспечения выполнения функций государственными (муниципальными) органами, казенными учреждениями, органами управления государственными внебюджетными фондами","08","04","40 4 00 17090","100",{"$f":"F108","v":952.5}]
["Расходы на выплату персоналу казенных учреждений","08","04","40 4 00 17090","110",{"$f":"F109+F110","v":952.5},null,null,null,-16,250,null,null,null,null,null,null,null,null,null,null,null,null,13,null,null,null,null,null,null,null,null,null,null,null,null,null,null,null,null,-3.3,null,null,null,null,null,null,null,null,null,null,null,null,null,null,null,null,null,null,null,null,null,null,null,null,null,null,null,null,null,null,null,null,null,null,null,null,null,null,null,null,null,null,null,null,null,16,100,10]
["Фонд оплаты труда учреждений","08","04","40 4 00 17090","111",731.6,null,null,null,16]
["Взносы по обязательному социальному страхованию на выплаты денежного содержания и иные выплаты работникам государственных (муниципальных) органов","08","04","40 4 00 17090","119",220.9]
["СОЦИАЛЬНАЯ ПОЛИТИКА","10","00","00 0 00 00000","000",{"$f":"F112+F117","v":121}]
["Пенсионное обеспечение ","10","01","00 0 00 00000","000",110]
["Непрограммные расходы в сфере установленных функций органов  местного самоуправления (органов местного самоуправления, муниципальных учреждений) муниципального образования Усть-Чульский сельсовет","10","01","40 0 00 00000","000",110]
["Доплаты к пенсиям муниципальных служащих","10","01","40 0 00 80020","000",110]
["Социальное обеспечение и иные выплаты населению","10","01","40 0 00 80020","300",110]
["Публичные нормативные социальные выплаты гражданам","10","01","40 0 00 80020","310",110,null,null,null,null,null,null,null,null,null,null,null,null,null,null,null,null,null,null,null,null,null,null,null,null,null,null,null,null,null,null,null,null,null,null,null,null,null,null,null,null,null,null,null,-8,null,null,null,null,null,null,null,null,null,null,null,null,null,null,null,null,null,null,null,null,null,null,null,null,null,null,null,null,null,null,null,null,null,null,null,null,30]
["Программа социально-экономического развития муниципального образования  Усть-Чульский сельсовет на 2021-2024 года","10","01","40 0 00 80020","000",11]
["закупка товаров, работ и услуг для орбеспечения государственных (муниципальных) нужд",null,null,"40 0 00 80020","200",11]
["Иные закупки товаров, работ, услуг для обеспечения государственных (муниципальных нужд)",null,null,"40 0 00 80020","240",11]
["ФИЗИЧЕСКАЯ КУЛЬТУРА И СПОРТ","11","00","00 0 00 00000","000",{"$f":"F121","v":13}]
["Другие вопросы в области физической культуры и спорта","11","05","00 0 00 00000","000",13]
["Непрограммные расходы в сфере установленных функций органов  местного самоуправления (органов местного самоуправления, муниципальных учреждений) муниципального образования Усть-Чульский сельсовет","11","05","40 0 00 00000","000",13]
["Обеспечение деятельности подведомственных учреждений (организации в области молодежной политики и оздоровления детей)","11","05","40 4 00 19090","000",13]
["Закупка товаров, работ и услуг для орбеспечения государственных (муниципальных) нужд","11","05","40 4 00 19090","200",13]
["Иные закупки товаров, работ, услуг для обеспечения государственных (муниципальных нужд)","11","05","40 4 00 19090","240",13]
["ИТОГО РАСХОДОВ",null,null,null,null,{"$f":"F7+F31+F39+F57+F75+F84+F93+F111+F120","v":12405.6}]
[]
["Глава Усть-Чульского сельсовета                                                                                            З.А.Ултургашева"]
[]
[]
[]
[]
[]
[]
[]
[]
[null,null,null," "]

{"sheet":"Лист1","index":1,"n_rows":0,"n_cols":0,"rows_kept":0,"cut":false,"hidden":false,"merged":[]}